[Event "Polish University-ch Open 2024"]
[Site "Lublin"]
[Date "2024.02.24"]
[Round "7.4"]
[White "Baum, Jonasz"]
[Black "Walter, Szymon"]
[Result "1/2-1/2"]
[ECO "E20"]
[WhiteElo "2400"]
[BlackElo "2305"]
[Annotator "RC"]
[PlyCount "100"]
[EventDate "2024.02.22"]
[EventType "swiss"]
[EventCountry "POL"]
[SourceTitle "playchess.com"]
[Source "ChessBase"]
[SourceQuality "1"]
[TimeControl "600+3"]

1. d4 {[%emt 0:10:06]} Nf6 {[%emt 0:00:24]} 2. c4 {[%emt 0:00:00]} e6 {[%emt 0:00:02]} 3. Nc3 {[%emt 0:00:00]} Bb4 {[%emt 0:00:03]} 4. g3 {[%emt 0:00:00]} O-O {[%emt 0:00:09]} 5. Bg2 {[%emt 0:00:00]} d6 {[%emt 0:00:06]} 6. Nf3 {[%emt 0:00:00]} Nbd7 {[%emt 0:00:06]} 7. Bd2 {[%emt 0:00:00]} Qe7 {[%emt 0:00:06]} 8. a3 {[%emt 0:00:00]} Bxc3 {[%emt 0:00:02]} 9. Bxc3 {[%emt 0:00:00]} Ne4 {[%emt 0:00:02]} 10. Qc2 {[%emt 0:00:00]} Nxc3 {[%emt 0:00:02]} 11. Qxc3 {[%emt 0:00:00]} e5 {[%emt 0:00:02]} 12. O-O {[%emt 0:00:00]} c6 {[%emt 0:00:10]} 13. Rfd1 {[%emt 0:00:00]} e4 {[%emt 0:00:25]} 14. Nd2 {[%emt 0:00:00]} Nf6 {[%emt 0:00:10]} 15. Nf1 {[%emt 0:00:00]} d5 {[%emt 0:00:21]} 16. Ne3 {[%emt 0:00:00]} Be6 {[%emt 0:00:01]} 17. b3 {[%emt 0:00:00]} Qd7 {[%emt 0:00:12]} 18. Rac1 {[%emt 0:00:00]} Rac8 {[%emt 0:00:19]} 19. Qb4 {[%emt 0:00:54]} Rfd8 {[%emt 0:00:19]} 20. f3 {[%emt 0:00:00]} exf3 {[%emt 0:00:12]} 21. exf3 {[%emt 0:00:00]} Re8 {[%emt 0:00:03]} 22. c5 {[%emt 0:00:00]} Bh3 {[%emt 0:00:43]} 23. Re1 {[%emt 0:00:00]} Bxg2 {[%emt 0:00:04]} 24. Kxg2 {[%emt 0:00:00]} Re7 {[%emt 0:00:11]} 25. Nc2 {[%emt 0:00:00]} Rce8 {[%emt 0:00:22]} 26. Rxe7 {[%emt 0:00:00]} Rxe7 {[%emt 0:00:02]} 27. Re1 {[%emt 0:00:00]} Rxe1 {[%emt 0:00:19]} 28. Nxe1 {[%emt 0:00:00]} h5 {[%emt 0:00:15]} 29. Nd3 {[%emt 0:00:00]} Qf5 {[%emt 0:00:11]} 30. Qd2 {[%emt 0:00:00]} Nh7 {[%emt 0:01:23]} 31. h4 {[%emt 0:00:00]} Nf8 {[%emt 0:00:02]} 32. Nf4 {[%emt 0:00:00]} Ne6 {[%emt 0:00:30]} 33. Nxe6 {[%emt 0:00:00]} Qxe6 {[%emt 0:00:03]} 34. b4 {[%emt 0:00:00]} Kh7 {[%emt 0:01:08]} 35. a4 {[%emt 0:00:00]} Qf5 {[%emt 0:00:05]} 36. b5 {[%emt 0:00:00]} Qb1 {[%emt 0:00:41]} 37. bxc6 {[%emt 0:00:00]} bxc6 {[%emt 0:00:02]} 38. Kf2 {[%emt 0:00:00]} Qa1 {[%emt 0:01:22]} 39. a5 {[%emt 0:00:01]} Kg8 {[%emt 0:00:04]} 40. Kg2 {[%emt 0:01:02]} Qa4 {[%emt 0:00:18]} 41. g4 {[%emt 0:00:00]} hxg4 {[%emt 0:00:02]} 42. fxg4 {[%emt 0:00:00]} Qa1 {[%emt 0:00:12]} 43. h5 {[%emt 0:00:00]} Qb1 {[%emt 0:00:02]} 44. Kg3 {[%emt 0:00:00]} Qg1+ {[%emt 0:00:02]} 45. Kf3 {[%emt 0:00:00]} Qf1+ {[%emt 0:00:02]} 46. Kg3 {[%emt 0:00:04]} Qg1+ {[%emt 0:00:04]} 47. Kh4 {[%emt 0:00:01]} Qh1+ {[%emt 0:00:59]} 48. Kg3 {[%emt 0:00:15]} Qg1+ {[%emt 0:00:00]} 49. Kh3 {[%emt 0:00:02]} Qh1+ {[%emt 0:00:00]} 50. Kg3 {[%emt 0:00:01]} Qg1+ {[%emt 0:00:00]} 1/2-1/2

[Event "Polish University-ch Open 2024"]
[Site "Lublin"]
[Date "2024.02.24"]
[Round "7.5"]
[White "Mis, Mieszko"]
[Black "Klepek, Witold"]
[Result "1-0"]
[ECO "A38"]
[WhiteElo "2325"]
[BlackElo "2262"]
[Annotator "RC"]
[PlyCount "103"]
[EventDate "2024.02.22"]
[EventType "swiss"]
[EventCountry "POL"]
[SourceTitle "playchess.com"]
[Source "ChessBase"]
[SourceQuality "1"]
[TimeControl "600+3"]

1. Nf3 {[%emt 0:00:40]} Nf6 {[%emt 0:00:01]} 2. c4 {[%emt 0:00:02]} g6 {[%emt 0:00:08]} 3. b3 {[%emt 0:00:11]} Bg7 {[%emt 0:00:03]} 4. Bb2 {[%emt 0:00:01]} c5 {[%emt 0:00:22]} 5. g3 {[%emt 0:00:04]} O-O {[%emt 0:00:07]} 6. Bg2 {[%emt 0:00:01]} Nc6 {[%emt 0:00:07]} 7. O-O {[%emt 0:00:04]} d6 {[%emt 0:00:46]} 8. Nc3 {[%emt 0:00:13]} e5 {[%emt 0:00:34]} 9. d3 {[%emt 0:00:11]} h6 {[%emt 0:00:06]} 10. Nd2 {[%emt 0:00:13]} Be6 {[%emt 0:00:03]} 11. Nde4 {[%emt 0:00:04]} Ne8 {[%emt 0:00:56]} 12. Nd5 {[%emt 0:00:09]} Bxd5 {[%emt 0:00:16]} 13. cxd5 {[%emt 0:00:02]} Ne7 {[%emt 0:00:02]} 14. Nc3 {[%emt 0:00:15]} a6 {[%emt 0:00:12]} 15. a3 {[%emt 0:00:03]} f5 {[%emt 0:00:24]} 16. b4 {[%emt 0:00:06]} cxb4 {[%emt 0:00:17]} 17. axb4 {[%emt 0:00:03]} Nc7 {[%emt 0:00:03]} 18. Qb3 {[%emt 0:00:08]} Qd7 {[%emt 0:00:05]} 19. Rfc1 {[%emt 0:00:28]} Rfc8 {[%emt 0:00:26]} 20. Na4 {[%emt 0:00:17]} Qb5 {[%emt 0:00:16]} 21. Nc3 {[%emt 0:00:22]} Qd7 {[%emt 0:00:01]} 22. Rc2 {[%emt 0:00:01]} Nb5 {[%emt 0:00:23]} 23. Nxb5 {[%emt 0:00:29]} Qxb5 {[%emt 0:00:02]} 24. Rc4 {[%emt 0:00:40]} a5 {[%emt 0:00:22]} 25. Bc3 {[%emt 0:01:28]} a4 {[%emt 0:00:38]} 26. Qa2 {[%emt 0:00:12]} Kh7 {[%emt 0:01:06]} 27. Bd2 {[%emt 0:00:19]} e4 {[%emt 0:00:23]} 28. Rac1 {[%emt 0:00:03]} Qxd5 {[%emt 0:00:12]} 29. dxe4 {[%emt 0:00:17]} Qf7 {[%emt 0:00:28]} 30. exf5 {[%emt 0:00:13]} Nxf5 {[%emt 0:00:42]} 31. e3 {[%emt 0:01:04]} b5 {[%emt 0:01:08]} 32. Bxa8 {[%emt 0:00:46]} Rxc4 {[%emt 0:00:01]} 33. Rd1 {[%emt 0:00:35]} Qc7 {[%emt 0:00:06]} 34. Bd5 {[%emt 0:00:16]} Rc2 {[%emt 0:00:04]} 35. Qa3 {[%emt 0:00:01]} Bb2 {[%emt 0:00:19]} 36. Qd3 {[%emt 0:00:04]} Bc1 {[%emt 0:00:18]} 37. Be1 {[%emt 0:00:20]} Ne7 {[%emt 0:00:01]} 38. Be4 {[%emt 0:00:09]} Rc4 {[%emt 0:00:00]} 39. h4 {[%emt 0:00:06]} h5 {[%emt 0:00:01]} 40. g4 {[%emt 0:00:29]} hxg4 {[%emt 0:00:03]} 41. h5 {[%emt 0:00:00]} a3 {[%emt 0:00:03]} 42. hxg6+ {[%emt 0:00:02]} Kg7 {[%emt 0:00:34]} 43. Qb1 {[%emt 0:00:16]} a2 {[%emt 0:00:00]} 44. Qa1+ {[%emt 0:00:05]} Kg8 {[%emt 0:00:00]} 45. Bd3 {[%emt 0:00:04]} g3 {[%emt 0:00:00]} 46. Bxc4+ {[%emt 0:00:03]} Qxc4 {[%emt 0:00:00]} 47. Rxc1 {[%emt 0:00:10]} gxf2+ {[%emt 0:00:00]} 48. Bxf2 {[%emt 0:00:01]} Qg4+ {[%emt 0:00:01]} 49. Kf1 {[%emt 0:00:01]} Qh3+ {[%emt 0:00:01]} 50. Ke1 {[%emt 0:00:04]} Qh1+ {[%emt 0:00:03]} 51. Kd2 {[%emt 0:00:09]} Qd5+ {[%emt 0:00:03]} 52. Qd4 {[%emt 0:00:09]} 1-0

[Event "Polish University-ch Open 2024"]
[Site "Lublin"]
[Date "2024.02.24"]
[Round "7.6"]
[White "Szustakowski, Antoni"]
[Black "Kulesza, Andrzej"]
[Result "0-1"]
[ECO "E60"]
[WhiteElo "2354"]
[BlackElo "2076"]
[Annotator "TA"]
[PlyCount "120"]
[EventDate "2024.02.22"]
[EventType "swiss"]
[EventCountry "POL"]
[SourceTitle "playchess.com"]
[Source "ChessBase"]
[SourceQuality "1"]
[TimeControl "600+3"]

{[%evp 18,120,26,23,35,6,42,-16,28,-32,0,0,12,0,79,72,83,92,139,143,129,114,117,106,102,114,112,99,100,112,116,106,90,88,170,96,140,132,123,0,0,0,41,-83,-79,-175,-177,-162,-112,-110,-65,-90,-62,-55,-31,-73,-46,-58,-10,-17,-13,-30,0,-110,-107,-189,-182,-227,-226,-227,-216,-268,-272,-300,-272,-366,-205,-233,-167,-159,-87,-155,-129,-83,-98,-93,-79,-73,-8,-29980,-29981,-29980,-29981,-29983,-29984,-29984,-29985,-29987,-29988,-29989,-29990,-29990,-29990,-29990,-29990]} 1. Nf3 {[%emt 0:00:02]} Nf6 {[%emt 0:00:04]} 2. g3 {[%emt 0:00:01]} g6 {[%emt 0:00:04]} 3. Bg2 {[%emt 0:00:01]} Bg7 {[%emt 0:00:01]} 4. b3 {[%emt 0:00:03]} O-O {[%emt 0:00:05]} 5. Bb2 {[%emt 0:00:01]} d6 {[%emt 0:00:08]} 6. d4 {[%emt 0:00:01]} Nbd7 {[%emt 0:00:04]} 7. O-O {[%emt 0:00:03]} Re8 {[%emt 0:00:07]} 8. c4 {[%emt 0:00:03]} c6 {[%emt 0:00:12]} 9. Nc3 {[%emt 0:00:03]} Qc7 {[%emt 0:00:05]} 10. e4 {[%emt 0:00:02]} e5 {[%emt 0:00:02]} 11. d5 {[%emt 0:00:01]} a5 {[%emt 0:00:09]} 12. a3 {[%emt 0:01:11]} (12. Ba3 $14) 12... Rf8 {[%emt 0:00:35] Die Stellung ist ausgeglichen.} 13. b4 {[%emt 0:00:19]} ({Besser ist} 13. Re1 $11) 13... axb4 {[%emt 0:00:02]} 14. axb4 {[%emt 0:00:01]} Rxa1 {[%emt 0:00:01]} 15. Qxa1 {[%emt 0:00:01]} Ne8 {[%emt 0:00:10]} (15... cxd5 $11 16. Nxd5 Nxd5 17. cxd5 Qc2) 16. Qa7 $16 {[%emt 0:03:03]} c5 {[%emt 0:03:32]} 17. Nb5 {[%emt 0:00:01]} Qb6 {[%emt 0:00:01]} (17... Qd8 $142) 18. bxc5 {[%emt 0:01:08]} Qxc5 {[%emt 0:00:41]} 19. Ba3 {[%emt 0:00:23]} Qxc4 {[%emt 0:00:14]} 20. Nxd6 {[%emt 0:00:01]} Nxd6 {[%emt 0:00:03]} 21. Bxd6 {[%emt 0:00:02]} Re8 {[%emt 0:00:10]} 22. Nd2 {[%emt 0:00:44]} Qc2 {[%emt 0:00:27]} 23. Qe3 {[%emt 0:00:33]} f5 {[%emt 0:01:42]} 24. exf5 {[%emt 0:01:11]} gxf5 {[%emt 0:00:02]} 25. Nf3 {[%emt 0:00:03]} Qc4 {[%emt 0:01:07]} (25... Qb2 $16) 26. Nh4 {[%emt 0:00:40]} (26. Rc1 $1 $18 {[%cal Rc1c4]} Qa6 27. Bc7) 26... Nf6 {[%emt 0:00:19] [#]} 27. Rc1 $1 {[%emt 0:00:18]} (27. Bxe5 $2 Ng4 (27... Nxd5 $2 28. Qd2 $18) 28. Qg5 Nxe5 $19) 27... Qd4 {[%emt 0:00:19]} 28. h3 {[%emt 0:01:07]} (28. Bxe5 $16 Qxe3 29. fxe3) 28... Qxe3 $11 {[%emt 0:00:18]} 29. fxe3 {[%emt 0:00:01][%cal Od6e5]} e4 {[%emt 0:00:01]} 30. Rf1 {[%emt 0:00:14]} (30. Bf1 $1 $14 {behält die Oberhand.}) 30... Nxd5 $17 {[%emt 0:00:07]} 31. Bc5 {[%emt 0:00:02]} (31. Nxf5 $17 {ist wohl besser.} Bxf5 32. Rxf5 Nxe3 33. Rb5) 31... b6 $36 {[%emt 0:00:05][%mdl 2048] Schwarz bestimmt, wo es lang geht.} 32. Bd4 {[%emt 0:00:01]} Bxd4 {[%emt 0:00:01]} 33. exd4 {[%emt 0:00:01]} Ne3 {[%emt 0:00:01]} 34. Re1 {[%emt 0:00:02]} Nxg2 {[%emt 0:00:02]} 35. Nxg2 $17 {[%emt 0:00:01][%mdl 4096] Endspiel. KRB-KRN} Rd8 {[%emt 0:00:04]} 36. Rd1 {[%emt 0:00:02]} Kf7 {[%emt 0:00:05]} 37. Kf2 $1 {[%emt 0:00:01]} Kf6 {[%emt 0:00:05]} (37... Bd7 $15 {war vorzuziehen.} 38. Ra1 Rc8) 38. Ke3 {[%emt 0:00:02]} Be6 {[%emt 0:00:05]} 39. Rb1 {[%emt 0:00:05]} Rg8 {[%emt 0:00:09]} 40. Kf2 {[%emt 0:00:07]} (40. Kf4 $11) 40... Rb8 {[%emt 0:00:03]} 41. Rb5 {[%emt 0:00:09]} (41. Ke3 $17) 41... Bc4 $19 {[%emt 0:00:03]} 42. Rb4 {[%emt 0:00:01]} b5 {[%emt 0:00:03]} 43. Ne3 {[%emt 0:00:01]} Rc8 {[%emt 0:00:04]} 44. Ke1 {[%emt 0:00:08]} Bd3 {[%emt 0:00:01]} 45. Kd2 {[%emt 0:00:02]} Rg8 {[%emt 0:00:03]} 46. g4 {[%emt 0:00:04]} fxg4 {[%emt 0:00:06]} (46... f4 $142 47. Nd5+ Kg5 48. h4+ Kxh4 (48... Kxg4 49. Nf6+ Kg3 50. Nxg8 $11) 49. Nxf4 Bc4 (49... Kxg4 50. Nxd3 exd3 51. Rxb5 $11)) 47. hxg4 {[%emt 0:00:01]} Kg5 {[%emt 0:00:07]} 48. d5 {[%emt 0:00:02]} Rd8 {[%emt 0:00:06]} (48... Kf6 $142 {...Ke5 ist eine echte Drohung.} 49. d6 Rd8) 49. Rd4 {[%emt 0:00:01]} ({Vorzuziehen ist} 49. Kc3) 49... Kf4 {[%emt 0:00:08] Zielt auf ...Ke5 ab.} 50. d6 {[%emt 0:00:01]} Ke5 {[%emt 0:00:01]} 51. Nf5 {[%emt 0:00:13]} h5 {[%emt 0:00:09]} 52. Ke3 {[%emt 0:00:01] [#]} hxg4 {[%emt 0:00:01]} (52... Rd7 $1 $17 53. Nh6 h4 (53... Rxd6 $2 {ist das falsche Schlagen.} 54. Nf7+ Ke6 55. Nxd6 $18)) 53. Ne7 $2 {[%emt 0:00:02][%mdl 8192] Der Zug kostet die Partie für Weiß.} (53. Nh6 $11 Ke6 (53... Rxd6 $2 {geht unter.} 54. Nf7+ Ke6 55. Nxd6 $18) 54. Nxg4) 53... Rxd6 {[%emt 0:00:04] Schwarz setzt Matt.} 54. Rxd6 {[%emt 0:00:07]} Kxd6 {[%emt 0:00:01] KB-KN} 55. Nf5+ {[%emt 0:00:01]} Kc5 {[%emt 0:00:00]} 56. Kd2 {[%emt 0:00:03]} b4 {[%emt 0:00:02]} 57. Ne3 {[%emt 0:00:02]} g3 {[%emt 0:00:01]} 58. Ng2 {[%emt 0:00:00]} Kd4 {[%emt 0:00:02]} 59. Kc1 {[%emt 0:00:01]} Kc3 {[%emt 0:00:01]} 60. Ne3 {[%emt 0:00:01]} b3 {[%emt 0:00:01] Gewichteter Fehlerwert: Weiß=0.38/Schwarz=0.22 (präzise) .  Verlustzug:     	Weiß=1     	---        Fehler:       	Weiß=9     	Schwarz=7     Ungenau:       	Weiß=3     	Schwarz=9     OK:         	Weiß=9     	Schwarz=10    Bester:       	Weiß=3     	Schwarz=5     Stark:        	Weiß=2     	---} 0-1

[Event "Polish University-ch Open 2024"]
[Site "Lublin"]
[Date "2024.02.24"]
[Round "7.7"]
[White "Suder, Jakub"]
[Black "Namyslak, Piotr"]
[Result "1-0"]
[ECO "D10"]
[WhiteElo "2333"]
[BlackElo "1763"]
[Annotator "TA"]
[PlyCount "99"]
[EventDate "2024.02.22"]
[EventType "swiss"]
[EventCountry "POL"]
[SourceTitle "playchess.com"]
[Source "ChessBase"]
[SourceQuality "1"]
[TimeControl "600+3"]

{[%evp 9,99,0,15,22,20,25,31,34,34,31,35,23,28,43,32,37,41,29,45,44,44,41,41,12,15,13,45,39,84,81,74,79,77,77,95,28,35,52,137,26,33,26,26,31,185,188,248,227,243,237,231,247,254,258,258,240,239,252,240,219,285,230,270,276,262,259,427,407,722,639,653,635,920,805,1256,1201,1159,781,743,752,2360,1564,2433,1808,29986,29987,29988,29989,29991,29992,29992,29993]} 1. d4 {[%emt 0:00:02]} d5 {[%emt 0:00:02]} 2. c4 {[%emt 0:00:01]} c6 {[%emt 0:00:04]} 3. cxd5 {[%emt 0:00:02]} cxd5 {[%emt 0:00:02]} 4. Bg5 {[%emt 0:00:01]} Qb6 {[%emt 0:00:15]} 5. Nc3 {[%emt 0:00:05]} e6 {[%emt 0:00:03]} 6. Qd2 {[%emt 0:00:02]} Nc6 {[%emt 0:00:11][%cal Of7f6]} 7. e3 {[%emt 0:00:02]} Be7 {[%emt 0:00:02]} 8. Bxe7 {[%emt 0:00:10] White is slightly better.} Ngxe7 {[%emt 0:00:02]} 9. Bd3 {[%emt 0:00:02]} Bd7 {[%emt 0:00:42]} 10. Nf3 {[%emt 0:00:02]} h6 {[%emt 0:00:45]} 11. Rc1 {[%emt 0:00:02]} Rc8 {[%emt 0:00:14]} 12. O-O {[%emt 0:00:18]} O-O {[%emt 0:01:48]} 13. Bb1 {[%emt 0:00:23]} Qb4 {[%emt 0:00:57]} 14. a3 {[%emt 0:00:18]} Qd6 {[%emt 0:00:02]} 15. b4 {[%emt 0:00:19]} a6 {[%emt 0:00:42]} 16. Qd3 $40 {[%emt 0:00:49][%mdl 128] White attacks.} f5 {[%emt 0:00:05]} 17. Qd1 {[%emt 0:00:24]} Na7 {[%emt 0:00:23]} 18. Bd3 {[%emt 0:00:30]} Bb5 {[%emt 0:00:54]} 19. Bxb5 {[%emt 0:00:33]} Nxb5 {[%emt 0:00:15]} 20. Nxb5 {[%emt 0:00:01]} axb5 {[%emt 0:00:07]} 21. Qd3 {[%emt 0:00:10]} Qa6 {[%emt 0:00:36]} 22. h4 {[%emt 0:00:23]} (22. Rc5 $16) 22... Rxc1 $11 {[%emt 0:00:59]} 23. Rxc1 {[%emt 0:00:01]} Rc8 {[%emt 0:00:01]} (23... Nc8 $1 $14) 24. Rxc8+ {[%emt 0:00:08]} (24. Rc5 $16) 24... Nxc8 $16 {[%emt 0:00:01][%mdl 4096] Endgame. KQN-KQN} 25. Ne5 {[%emt 0:00:10]} Nd6 {[%emt 0:00:10]} 26. g4 {[%emt 0:00:33][%cal Bg2g4,Bg4f5,Bf5e6][%mdl 32]} Nc4 $2 {[%emt 0:01:15] This costs Black the game.} (26... Qb6 $14) 27. gxf5 $18 {[%emt 0:00:04]} Qxa3 {[%emt 0:00:01]} (27... exf5 {was necessary.} 28. Qxf5 Nxe5 29. Qxe5 (29. dxe5 Qxa3 30. e6 Qc1+ 31. Kg2 Qc7 $18) 29... Qc6) 28. Qxa3 {[%emt 0:00:21]} Nxa3 {[%emt 0:00:01]} 29. fxe6 {[%emt 0:00:01] Intending e7 and mate. KN-KN} Kf8 {[%emt 0:00:02]} 30. Ng6+ {[%emt 0:01:26]} Ke8 {[%emt 0:00:01] [#]} 31. Nf4 $1 {[%emt 0:00:01]} Ke7 {[%emt 0:00:54]} 32. Kf1 {[%emt 0:00:51]} (32. Nxd5+ Kxe6 33. Nc3 Nc2 $18) 32... Nc2 {[%emt 0:00:00]} 33. Nxd5+ {[%emt 0:00:01]} Kxe6 {[%emt 0:00:00]} 34. Nc7+ {[%emt 0:00:07]} Kd7 {[%emt 0:00:00]} 35. Nxb5 {[%emt 0:00:02]} Nxb4 {[%emt 0:00:00]} 36. Ke2 {[%emt 0:00:06]} Nd5 {[%emt 0:00:02]} 37. e4 {[%emt 0:00:18]} Nf4+ {[%emt 0:00:11]} (37... Kc6) 38. Kf3 {[%emt 0:00:04]} Ne6 {[%emt 0:00:02]} (38... g5 $142 39. hxg5 hxg5) 39. Ke3 {[%emt 0:00:14]} g6 {[%emt 0:00:04]} 40. d5 {[%emt 0:00:07][%cal Bd4d5,Bd5d6][%mdl 32]} Nc5 {[%emt 0:00:04]} 41. Kd4 {[%emt 0:00:07]} b6 {[%emt 0:00:02]} 42. f4 {[%emt 0:00:16]} Ke7 {[%emt 0:00:08]} 43. Nc3 {[%emt 0:00:41]} Nb3+ {[%emt 0:00:00]} 44. Ke5 {[%emt 0:00:04] [#] Threatens to win with d6+.} Nd2 {[%emt 0:00:00]} 45. d6+ {[%emt 0:00:15]} Kd7 46. Kd5 {[%emt 0:00:01] e5 would kill now.} Nf3 {[%emt 0:00:06]} 47. e5 {[%emt 0:00:01][%cal Be4e5,Be5e6,Be6e7][%mdl 32] White mates.} Nxh4 {[%emt 0:00:02]} 48. e6+ {[%emt 0:00:02]} Kd8 {[%emt 0:00:03]} 49. e7+ {[%emt 0:00:19]} Kd7 {[%emt 0:00:04]} 50. Ne4 {[%emt 0:00:02] Weighted Error Value: White=0.12 (very precise) /Black=0.42.  Mistake:       	White=2     	Black=5      Inaccurate:     	White=1     	Black=3      OK:         	White=14    	Black=11     Best:        	White=2     	Black=3      Strong:       	White=1     	---} 1-0

[Event "Polish University-ch Open 2024"]
[Site "Lublin"]
[Date "2024.02.24"]
[Round "7.8"]
[White "Dalkowski, Rafal"]
[Black "Dzida, Kamil"]
[Result "1/2-1/2"]
[ECO "E15"]
[WhiteElo "2093"]
[BlackElo "2403"]
[Annotator "TA"]
[PlyCount "118"]
[EventDate "2024.02.22"]
[EventType "swiss"]
[EventCountry "POL"]
[SourceTitle "playchess.com"]
[Source "ChessBase"]
[SourceQuality "1"]
[TimeControl "600+3"]

{[%evp 11,118,31,22,7,-3,0,0,-4,0,0,0,0,0,0,0,0,0,0,0,-78,-77,-70,-75,-92,-87,-93,-97,-117,-118,-122,-108,-120,-105,-110,-88,-88,-98,-87,-84,-77,-81,-76,-73,-93,-89,-338,-326,-348,-352,-350,-344,-366,-333,-328,-247,-254,-254,-254,-235,-228,-214,-243,-228,-239,-229,-234,-232,-231,-225,-233,-219,-208,-139,-184,-149,-161,-148,-152,-150,-144,-129,-133,-121,-163,-141,-141,-138,-134,-108,-108,0,-131,-109,-109,-109,-109,-109,-129,0,-102,0,-129,0,0,0,-66,-66,-91,0]} 1. d4 {[%emt 0:00:01]} Nf6 {[%emt 0:00:02]} 2. c4 {[%emt 0:00:02]} e6 {[%emt 0:00:01]} 3. Nf3 {[%emt 0:00:01]} b6 {[%emt 0:00:02]} 4. g3 {[%emt 0:00:02]} Ba6 {[%emt 0:00:04]} 5. Qc2 {[%emt 0:00:03]} Bb7 {[%emt 0:00:10]} 6. Bg2 {[%emt 0:00:08]} c5 {[%emt 0:00:01]} 7. d5 {[%emt 0:00:01] E15: Queen's Indian: 4 g3 sidelines, 4 g3 Ba6 and 4 g3 Bb7 early deviations.} exd5 {[%emt 0:00:02]} 8. cxd5 {[%emt 0:00:03]} Nxd5 {[%emt 0:00:01]} 9. O-O {[%emt 0:00:11]} Be7 {[%emt 0:00:01] Against Ng5} 10. Rd1 {[%emt 0:00:09] Strongly threatening Qe4.} Nc6 {[%emt 0:00:01]} 11. Qf5 $1 {[%emt 0:00:05][%mdl 4] is now more promising than 11.Qa4.} (11. Rxd5 Nb4 12. Qd1 Bxd5 $17 (12... Nxd5 13. Ne1 $16)) 11... Nf6 {[%emt 0:00:10]} 12. e4 {[%emt 0:00:08]} g6 {[%emt 0:00:13]} 13. Qf4 {[%emt 0:00:08]} O-O {[%emt 0:00:02]} 14. Nc3 {[%emt 0:00:05]} d6 {[%emt 0:02:04]} 15. e5 {[%emt 0:00:14]} (15. b3 $11 {remains equal.}) 15... dxe5 $146 {[%emt 0:00:43]} ({Don't play} 15... Nxe5 16. Nxe5 Bxg2 (16... dxe5 $2 {is the wrong capture.} 17. Rxd8 exf4 18. Rxf8+ Kxf8 19. Bxb7 $18) 17. Kxg2 dxe5 18. Qxe5 $15) ({Predecessor:} 15... Nxe5 16. Nxe5 Bxg2 17. Kxg2 dxe5 18. Qxe5 Qe8 19. Qc7 Rc8 20. Qxa7 Qc6+ 21. f3 Rfe8 {0-1 Xiu,D (2554)-Liu,G (2453) CHN Team Beijing 2017 (7.2)}) 16. Nxe5 {[%emt 0:00:18]} Qc8 {[%emt 0:00:05]} 17. Be3 {[%emt 0:01:08]} Nxe5 {[%emt 0:00:24]} 18. Qxe5 {[%emt 0:00:04]} Re8 {[%emt 0:00:47]} 19. Nd5 {[%emt 0:01:04]} Nxd5 {[%emt 0:00:28]} 20. Bxd5 {[%emt 0:00:02]} Bf8 {[%emt 0:00:33]} 21. Qf4 {[%emt 0:00:29]} Bxd5 {[%emt 0:00:10]} 22. Rxd5 {[%emt 0:00:01]} Rd8 {[%emt 0:00:15]} 23. Rad1 {[%emt 0:00:23]} Rxd5 {[%emt 0:00:01]} 24. Rxd5 {[%emt 0:00:01]} Bg7 {[%emt 0:00:01]} 25. b3 {[%emt 0:00:12]} Qe6 {[%emt 0:01:27]} 26. Qf3 {[%emt 0:00:01][%cal Od5c5]} Re8 {[%emt 0:00:04]} 27. h4 {[%emt 0:00:08]} h5 {[%emt 0:00:02]} 28. Qd1 $2 {[%emt 0:00:36]} (28. a4 $17 {keeps fighting.}) 28... Bd4 $1 $19 {[%emt 0:00:07]} 29. Rxd4 {[%emt 0:00:10]} cxd4 {[%emt 0:00:01]} 30. Qxd4 {[%emt 0:00:01]} Qe4 {[%emt 0:00:20] aiming for ...Qxd4.} 31. Qf6 {[%emt 0:00:11]} Qe7 {[%emt 0:00:02]} 32. Qc3 {[%emt 0:00:11]} Rd8 {[%emt 0:00:24]} 33. Bh6 {[%emt 0:00:10]} f6 {[%emt 0:00:18]} 34. Qc2 {[%emt 0:00:20] Repels Rd1+} Kh7 {[%emt 0:00:06]} 35. Be3 {[%emt 0:00:03]} Qd7 {[%emt 0:00:11] Threatens to win with ...Qd1+.} 36. Qc3 {[%emt 0:00:04]} Qf5 {[%emt 0:00:15] White must now prevent ...Rd1+.} 37. Qc4 {[%emt 0:00:14]} Rd7 {[%emt 0:00:11] Repels Qf7+} 38. Kh2 {[%emt 0:00:11]} g5 {[%emt 0:00:24]} 39. hxg5 {[%emt 0:00:25]} fxg5 {[%emt 0:00:01]} 40. Qc6 {[%emt 0:00:04]} Rf7 {[%emt 0:00:11]} 41. Qd6 {[%emt 0:00:26]} Qg6 {[%emt 0:00:14]} 42. Qe5 {[%emt 0:00:08]} Rf5 {[%emt 0:00:17]} 43. Qe7+ {[%emt 0:00:09]} Qf7 {[%emt 0:00:01]} 44. Qe4 {[%emt 0:00:21]} Kg6 {[%emt 0:00:19]} 45. Qc6+ {[%emt 0:00:10]} Rf6 {[%emt 0:00:18]} 46. Qe4+ {[%emt 0:00:02] [#]} Kh6 $1 {[%emt 0:00:06]} 47. Qe5 {[%emt 0:00:11]} Rxf2+ {[%emt 0:00:23]} 48. Bxf2 {[%emt 0:00:01]} Qxf2+ {[%emt 0:00:01]} 49. Kh1 {[%emt 0:00:02]} Qf1+ {[%emt 0:00:06]} (49... Qxa2 $6 50. Qf6+ Kh7 51. Qxg5 $11) 50. Kh2 {[%emt 0:00:01]} Qf2+ {[%emt 0:00:01]} 51. Kh1 {[%emt 0:00:01]} Kg6 {[%emt 0:00:07]} (51... Qxa2 $6 52. Qf6+ Kh7 53. Qxg5 $11) 52. Qe8+ {[%emt 0:00:07]} Qf7 {[%emt 0:00:04]} 53. Qe4+ {[%emt 0:00:05]} Kh6 {[%emt 0:00:13]} 54. Qe5 {[%emt 0:00:20]} Qf1+ {[%emt 0:00:02]} 55. Kh2 {[%emt 0:00:01]} Qf2+ {[%emt 0:00:02]} 56. Kh1 {[%emt 0:00:01]} Kg6 {[%emt 0:00:02]} ({But not} 56... Qxa2 $6 57. Qf6+ Kh7 58. Qe7+ Kg6 59. Qe6+ Kg7 60. Qe7+ Kg6 61. Qe6+ Kg7 62. Qe7+ Kg8 63. Qe8+ Kg7 64. Qe7+ $11) (56... Qf3+ $17 57. Kh2 g4 58. Qd6+ Kg5 59. Qe5+ Kg6 60. Qe6+ Qf6 61. Qe8+ Kg5 62. Qe3+ Kg6) 57. Qe8+ $1 $11 {[%emt 0:00:01]} Qf7 {[%emt 0:00:01]} ({Black should play} 57... Kg7 $11) 58. Qe4+ $15 {[%emt 0:00:02]} Qf5 {[%emt 0:00:02]} 59. Qe8+ {[%emt 0:00:02]} Qf7 {[%emt 0:00:06]} (59... Kf6 $17 60. Qxh5 Qb1+ 61. Kh2 Qxa2+ 62. Kh3 Qxb3 63. Qh6+ Kf7 64. Qh7+ Kf6) 1/2-1/2